[Event "NJSK 2023 Jeugd C"]
[Site "Almelo, Netherlands"]
[Date "2023.05.03"]
[Round "5.4"]
[White "Wink, Luka"]
[Black "Terlouw, Wouter"]
[Result "1-0"]
[TimeControl "90min/40moves + 30min + 30sec/move"]
[WhiteElo "1849"]
[BlackElo "1923"]

1. e4 {[%clk 01:30:39]} {[%emt 00:00:19]} c5 {[%clk 01:30:49]} {[%emt
00:00:11]} 2. Nf3 {[%clk 01:31:00]} {[%emt 00:00:10]} Nc6 {[%clk 01:30:57]}
{[%emt 00:00:22]} 3. d4 {[%clk 01:31:23]} {[%emt 00:00:08]} cxd4 {[%clk
01:31:20]} {[%emt 00:00:07]} 4. Nxd4 {[%clk 01:31:47]} {[%emt 00:00:05]} Nf6
{[%clk 01:31:30]} {[%emt 00:00:20]} 5. Nc3 {[%clk 01:32:08]} {[%emt 00:00:09]}
e5 {[%clk 01:31:38]} {[%emt 00:00:23]} 6. Ndb5 {[%clk 01:32:30]} {[%emt
00:00:08]} d6 {[%clk 01:32:02]} {[%emt 00:00:06]} 7. Nd5 {[%clk 01:32:34]}
{[%emt 00:00:25]} Nxd5 {[%clk 01:32:27]} {[%emt 00:00:06]} 8. exd5 {[%clk
01:33:01]} {[%emt 00:00:02]} Nb8 {[%clk 01:32:52]} {[%emt 00:00:05]} 9. c4
{[%clk 01:33:19]} {[%emt 00:00:13]} Be7 {[%clk 01:33:17]} {[%emt 00:00:04]} 10.
Bd3 {[%clk 01:33:31]} {[%emt 00:00:17]} O-O {[%clk 01:33:36]} {[%emt 00:00:11]}
11. O-O {[%clk 01:32:28]} {[%emt 00:01:33]} f5 {[%clk 01:33:59]} {[%emt
00:00:08]} 12. c5 {[%clk 01:28:45]} {[%emt 00:04:13]} a6 {[%clk 01:33:25]}
{[%emt 00:01:04]} 13. cxd6 {[%clk 01:28:40]} {[%emt 00:00:34]} Bxd6 {[%clk
01:33:49]} {[%emt 00:00:05]} 14. Nxd6 {[%clk 01:28:53]} {[%emt 00:00:17]} Qxd6
{[%clk 01:34:13]} {[%emt 00:00:06]} 15. Be2 {[%clk 01:27:52]} {[%emt 00:01:31]}
Nd7 {[%clk 01:33:24]} {[%emt 00:01:19]} 16. Re1 {[%clk 01:26:10]} {[%emt
00:02:12]} Nf6 {[%clk 01:33:05]} {[%emt 00:00:49]} 17. Qb3 {[%clk 01:14:40]}
{[%emt 00:12:00]} b5 {[%clk 01:28:13]} {[%emt 00:05:22]} 18. a4 {[%clk
01:12:49]} {[%emt 00:02:21]} bxa4 {[%clk 01:15:41]} {[%emt 00:13:03]} 19. Rxa4
{[%clk 01:12:32]} {[%emt 00:00:46]} Nxd5 {[%clk 01:13:48]} {[%emt 00:02:23]} 20.
Bc4 {[%clk 01:09:19]} {[%emt 00:03:43]} Be6 {[%clk 01:13:34]} {[%emt 00:00:44]}
21. Rd1 {[%clk 01:09:12]} {[%emt 00:00:37]} Rfd8 {[%clk 01:13:06]} {[%emt
00:00:58]} 22. Ra5 {[%clk 01:09:17]} {[%emt 00:00:26]} Rab8 {[%clk 01:11:11]}
{[%emt 00:02:25]} 23. Qa2 {[%clk 01:04:37]} {[%emt 00:05:11]} Nc3 {[%clk
01:04:28]} {[%emt 00:07:13]} 24. Bxe6+ {[%clk 01:01:11]} {[%emt 00:03:55]} Kh8
{[%clk 01:04:39]} {[%emt 00:00:19]} 25. Rxd6 {[%clk 01:01:22]} {[%emt
00:00:18]} Rxd6 {[%clk 01:04:44]} {[%emt 00:00:25]} 26. Rd5 {[%clk 00:55:16]}
{[%emt 00:06:36]} Rxd5 {[%clk 01:04:11]} {[%emt 00:01:05]} 27. Bxd5 {[%clk
00:54:45]} {[%emt 00:01:01]} Nxa2 {[%clk 01:04:27]} {[%emt 00:00:14]} 28. Bxa2
{[%clk 00:55:12]} {[%emt 00:00:03]} Rc8 {[%clk 01:04:21]} {[%emt 00:00:36]} 29.
Bd2 {[%clk 00:54:38]} {[%emt 00:01:04]} Rc2 {[%clk 01:04:39]} {[%emt 00:00:10]}
30. Be1 {[%clk 00:54:32]} {[%emt 00:00:39]} Rxb2 {[%clk 01:04:59]} {[%emt
00:00:10]} 31. Bc4 {[%clk 00:54:27]} {[%emt 00:00:34]} Rb1 {[%clk 01:03:32]}
{[%emt 00:01:57]} 32. Kf1 {[%clk 00:54:52]} {[%emt 00:00:05]} a5 {[%clk
01:03:54]} {[%emt 00:00:08]} 33. Ke2 {[%clk 00:54:15]} {[%emt 00:01:07]} a4
{[%clk 01:04:11]} {[%emt 00:00:13]} 34. Bc3 {[%clk 00:54:06]} {[%emt 00:00:38]}
e4 {[%clk 01:02:28]} {[%emt 00:02:14]} 35. Kd2 {[%clk 00:52:15]} {[%emt
00:02:20]} Rg1 {[%clk 01:01:35]} {[%emt 00:01:23]} 36. g3 {[%clk 00:51:11]}
{[%emt 00:01:36]} Rg2 {[%clk 01:01:40]} {[%emt 00:00:25]} 37. Ke3 {[%clk
00:47:34]} {[%emt 00:04:07]} Rxh2 {[%clk 01:01:26]} {[%emt 00:00:44]} 38. Bd4
{[%clk 00:47:03]} {[%emt 00:01:00]} Rh1 {[%clk 00:51:28]} {[%emt 00:10:27]} 39.
Kf4 {[%clk 00:44:19]} {[%emt 00:03:14]} Rd1 {[%clk 00:41:04]} {[%emt 00:10:55]}
40. Ke5 {[%clk 00:42:14]} {[%emt 00:02:35]} a3 {[%clk 00:38:17]} {[%emt
00:03:18]} 41. Bc5 {[%clk 00:40:37]} {[%emt 00:02:06]} Ra1 {[%clk 00:37:05]}
{[%emt 00:01:41]} 42. Be6 {[%clk 00:40:05]} {[%emt 00:01:04]} h6 {[%clk
00:33:16]} {[%emt 00:04:19]} 43. Kxf5 {[%clk 00:40:04]} {[%emt 00:00:31]} a2
{[%clk 00:28:46]} {[%emt 00:05:01]} 44. Be3 {[%clk 00:39:07]} {[%emt 00:01:27]}
Kh7 {[%clk 00:28:11]} {[%emt 00:01:05]} 45. Ke5 {[%clk 00:38:13]} {[%emt
00:01:24]} h5 {[%clk 00:26:18]} {[%emt 00:02:24]} 46. Bd4 {[%clk 00:38:15]}
{[%emt 00:00:27]} e3 {[%clk 00:23:17]} {[%emt 00:03:32]} 47. fxe3 {[%clk
00:36:52]} {[%emt 00:01:52]} Rg1 {[%clk 00:23:12]} {[%emt 00:00:35]} 48. Bxa2
{[%clk 00:37:18]} {[%emt 00:00:04]} Rxg3 {[%clk 00:23:33]} {[%emt 00:00:09]} 49.
Kf4 {[%clk 00:34:34]} {[%emt 00:03:14]} h4 {[%clk 00:23:37]} {[%emt 00:00:26]}
50. e4 {[%clk 00:34:31]} {[%emt 00:00:34]} g5+ {[%clk 00:23:42]} {[%emt
00:00:25]} 51. Kf5 {[%clk 00:34:50]} {[%emt 00:00:11]} h3 {[%clk 00:23:28]}
{[%emt 00:00:44]} 52. Be5 {[%clk 00:33:09]} {[%emt 00:02:11]} h2 {[%clk
00:22:49]} {[%emt 00:01:09]} 53. Bxg3 {[%clk 00:33:09]} {[%emt 00:00:29]} h1=Q
{[%clk 00:23:12]} {[%emt 00:00:08]} 54. Bd6 {[%clk 00:29:44]} {[%emt 00:03:54]}
Qf1+ {[%clk 00:19:04]} {[%emt 00:04:39]} 55. Ke6 {[%clk 00:26:51]} {[%emt
00:03:23]} Kg6 {[%clk 00:18:25]} {[%emt 00:01:08]} 56. Ke7 {[%clk 00:24:08]}
{[%emt 00:03:14]} Qf6+ {[%clk 00:17:44]} {[%emt 00:01:11]} 57. Kd7 {[%clk
00:24:20]} {[%emt 00:00:18]} Qg7+ {[%clk 00:16:45]} {[%emt 00:01:29]} 58. Kc6
{[%clk 00:24:35]} {[%emt 00:00:15]} Qc3+ {[%clk 00:15:52]} {[%emt 00:01:23]} 59.
Kd7 {[%clk 00:24:53]} {[%emt 00:00:11]} Qf3 {[%clk 00:12:20]} {[%emt 00:03:57]}
60. e5 {[%clk 00:22:29]} {[%emt 00:02:59]} Qb7+ {[%clk 00:12:15]} {[%emt
00:00:36]} 61. Bc7 {[%clk 00:22:48]} {[%emt 00:00:12]} Qb5+ {[%clk 00:11:56]}
{[%emt 00:00:49]} 62. Kd8 {[%clk 00:23:09]} {[%emt 00:00:09]} Qa6 {[%clk
00:11:26]} {[%emt 00:01:00]} 63. Bb1+ {[%clk 00:22:09]} {[%emt 00:01:30]} Kf7
{[%clk 00:11:27]} {[%emt 00:00:27]} 64. Bf5 {[%clk 00:21:35]} {[%emt 00:01:06]}
Qa3 {[%clk 00:06:03]} {[%emt 00:05:50]} 65. Bd6 {[%clk 00:20:29]} {[%emt
00:01:40]} Qa5+ {[%clk 00:06:05]} {[%emt 00:00:28]} 66. Bc7 {[%clk 00:20:21]}
{[%emt 00:00:40]} Kg7 {[%clk 00:05:35]} {[%emt 00:01:00]} 67. Bxa5 {[%clk
00:20:37]} {[%emt 00:00:14]} 1-0

[Event "NJSK 2023 Jeugd C"]
[Site "Almelo, Netherlands"]
[Date "2023.05.03"]
[Round "5.5"]
[White "Roolvink, William"]
[Black "Kazarjan, Gachatur"]
[Result "1-0"]
[TimeControl "90min/40moves + 30min + 30sec/move"]
[WhiteElo "1852"]
[BlackElo "1872"]

1. e4 {[%clk 01:30:57]} {[%emt 00:00:02]} c5 {[%clk 01:30:57]} {[%emt
00:00:04]} 2. Nc3 {[%clk 01:31:26]} {[%emt 00:00:02]} Nc6 {[%clk 01:31:22]}
{[%emt 00:00:05]} 3. Bb5 {[%clk 01:31:46]} {[%emt 00:00:09]} Nd4 {[%clk
01:30:43]} {[%emt 00:01:09]} 4. Nf3 {[%clk 01:31:25]} {[%emt 00:00:50]} e6
{[%clk 01:28:50]} {[%emt 00:02:23]} 5. O-O {[%clk 01:31:25]} {[%emt 00:00:29]}
a6 {[%clk 01:28:16]} {[%emt 00:01:04]} 6. Bd3 {[%clk 01:30:29]} {[%emt
00:01:26]} Bd6 {[%clk 01:25:55]} {[%emt 00:02:51]} 7. Nxd4 {[%clk 01:18:10]}
{[%emt 00:12:48]} cxd4 {[%clk 01:25:45]} {[%emt 00:00:40]} 8. Ne2 {[%clk
01:18:31]} {[%emt 00:00:09]} Qb6 {[%clk 01:22:01]} {[%emt 00:04:14]} 9. c3
{[%clk 01:17:56]} {[%emt 00:01:06]} dxc3 {[%clk 01:22:27]} {[%emt 00:00:04]} 10.
bxc3 {[%clk 01:18:09]} {[%emt 00:00:16]} Bxh2+ {[%clk 01:22:14]} {[%emt
00:00:44]} 11. Kxh2 {[%clk 01:15:20]} {[%emt 00:03:18]} Qd6+ {[%clk 01:22:38]}
{[%emt 00:00:06]} 12. Ng3 {[%clk 01:15:37]} {[%emt 00:00:12]} Qxd3 {[%clk
01:23:03]} {[%emt 00:00:06]} 13. Ba3 {[%clk 01:15:57]} {[%emt 00:00:10]} Ne7
{[%clk 01:17:18]} {[%emt 00:06:15]} 14. Qg4 {[%clk 00:58:22]} {[%emt 00:18:06]}
Rg8 {[%clk 00:48:32]} {[%emt 00:29:16]} 15. f4 {[%clk 00:42:23]} {[%emt
00:16:27]} f6 {[%clk 00:31:46]} {[%emt 00:17:17]} 16. Qh5+ {[%clk 00:31:21]}
{[%emt 00:11:32]} Kf8 {[%clk 00:23:50]} {[%emt 00:08:26]} 17. Qxh7 {[%clk
00:29:15]} {[%emt 00:02:36]} d6 {[%clk 00:23:52]} {[%emt 00:00:29]} 18. Rf3
{[%clk 00:28:41]} {[%emt 00:01:03]} Qxd2 {[%clk 00:22:15]} {[%emt 00:02:08]} 19.
e5 {[%clk 00:15:44]} {[%emt 00:13:27]} Kf7 {[%clk 00:21:37]} {[%emt 00:01:08]}
20. Ne4 {[%clk 00:10:14]} {[%emt 00:06:00]} Qd5 {[%clk 00:19:36]} {[%emt
00:02:31]} 21. exf6 {[%clk 00:05:16]} {[%emt 00:05:27]} Nf5 {[%clk 00:18:26]}
{[%emt 00:01:40]} 22. Ng5+ {[%clk 00:05:09]} {[%emt 00:00:38]} Kf8 {[%clk
00:18:51]} {[%emt 00:00:05]} 23. f7 {[%clk 00:05:21]} {[%emt 00:00:17]} Nh6
{[%clk 00:18:46]} {[%emt 00:00:35]} 24. fxg8=Q+ {[%clk 00:04:14]} {[%emt
00:01:37]} Nxg8 {[%clk 00:19:12]} {[%emt 00:00:05]} 25. Rd3 {[%clk 00:04:26]}
{[%emt 00:00:18]} 1-0

[Event "NJSK 2023 Jeugd C"]
[Site "Almelo, Netherlands"]
[Date "2023.05.03"]
[Round "5.6"]
[White "Lopes, Samuel"]
[Black "Krylov, Philippe"]
[Result "1/2-1/2"]
[TimeControl "90min/40moves + 30min + 30sec/move"]
[WhiteElo "1865"]
[BlackElo "1858"]

1. e4 {[%clk 01:30:57]} {[%emt 00:00:02]} c6 {[%clk 01:30:58]} {[%emt
00:00:03]} 2. d4 {[%clk 01:31:14]} {[%emt 00:00:13]} d5 {[%clk 01:31:24]}
{[%emt 00:00:04]} 3. e5 {[%clk 01:31:37]} {[%emt 00:00:07]} Bf5 {[%clk
01:31:50]} {[%emt 00:00:04]} 4. h4 {[%clk 01:32:01]} {[%emt 00:00:06]} h5
{[%clk 01:32:16]} {[%emt 00:00:03]} 5. Bd3 {[%clk 01:32:25]} {[%emt 00:00:06]}
Bxd3 {[%clk 01:32:44]} {[%emt 00:00:03]} 6. Qxd3 {[%clk 01:32:49]} {[%emt
00:00:06]} Qa5+ {[%clk 01:33:11]} {[%emt 00:00:03]} 7. Nd2 {[%clk 01:33:10]}
{[%emt 00:00:09]} e6 {[%clk 01:33:38]} {[%emt 00:00:03]} 8. Ngf3 {[%clk
01:33:35]} {[%emt 00:00:05]} Qa6 {[%clk 01:34:05]} {[%emt 00:00:02]} 9. c4
{[%clk 01:33:59]} {[%emt 00:00:06]} Ne7 {[%clk 01:34:32]} {[%emt 00:00:02]} 10.
O-O {[%clk 01:34:22]} {[%emt 00:00:07]} Nf5 {[%clk 01:34:58]} {[%emt 00:00:04]}
11. b3 {[%clk 01:34:45]} {[%emt 00:00:07]} Be7 {[%clk 01:35:25]} {[%emt
00:00:03]} 12. a4 {[%clk 01:35:10]} {[%emt 00:00:06]} Qa5 {[%clk 01:35:49]}
{[%emt 00:00:05]} 13. Ba3 {[%clk 01:35:35]} {[%emt 00:00:06]} Bxa3 {[%clk
01:36:16]} {[%emt 00:00:03]} 14. Rxa3 {[%clk 01:36:00]} {[%emt 00:00:05]} Na6
{[%clk 01:36:42]} {[%emt 00:00:04]} 15. b4 {[%clk 01:36:24]} {[%emt 00:00:05]}
Nxb4 {[%clk 01:37:06]} {[%emt 00:00:06]} 16. Qc3 {[%clk 01:36:49]} {[%emt
00:00:05]} c5 {[%clk 01:37:33]} {[%emt 00:00:04]} 17. cxd5 {[%clk 01:37:13]}
{[%emt 00:00:06]} cxd4 {[%clk 01:37:58]} {[%emt 00:00:05]} 18. Nxd4 {[%clk
01:37:37]} {[%emt 00:00:05]} Nxd4 {[%clk 01:38:25]} {[%emt 00:00:03]} 19. Qxd4
{[%clk 01:38:02]} {[%emt 00:00:05]} Nc2 {[%clk 01:38:52]} {[%emt 00:00:02]} 20.
Qc3 {[%clk 01:38:27]} {[%emt 00:00:05]} Qxc3 {[%clk 01:26:22]} {[%emt
00:13:01]} 21. Rxc3 {[%clk 01:38:43]} {[%emt 00:00:14]} Nd4 {[%clk 01:25:26]}
{[%emt 00:01:26]} 22. Rd3 {[%clk 01:38:59]} {[%emt 00:00:14]} Ne2+ {[%clk
01:10:30]} {[%emt 00:15:26]} 23. Kh2 {[%clk 01:39:17]} {[%emt 00:00:12]}
1/2-1/2

[Event "NJSK 2023 Jeugd C"]
[Site "Almelo, Netherlands"]
[Date "2023.05.03"]
[Round "5.7"]
[White "Katpatal, Akshaj"]
[Black "Van Batenburg, Mees"]
[Result "1/2-1/2"]
[TimeControl "90min/40moves + 30min + 30sec/move"]
[WhiteElo "1840"]
[BlackElo "2054"]

1. e4 {[%clk 01:30:47]} {[%emt 00:00:12]} c5 {[%clk 01:30:59]} {[%emt
00:00:02]} 2. Nf3 {[%clk 01:31:09]} {[%emt 00:00:07]} Nc6 {[%clk 01:31:25]}
{[%emt 00:00:05]} 3. d4 {[%clk 01:31:29]} {[%emt 00:00:09]} cxd4 {[%clk
01:31:53]} {[%emt 00:00:03]} 4. Nxd4 {[%clk 01:31:54]} {[%emt 00:00:05]} e5
{[%clk 01:32:20]} {[%emt 00:00:03]} 5. Nxc6 {[%clk 01:31:32]} {[%emt 00:00:51]}
bxc6 {[%clk 01:32:44]} {[%emt 00:00:06]} 6. Nc3 {[%clk 01:31:45]} {[%emt
00:00:16]} Nf6 {[%clk 01:33:08]} {[%emt 00:00:07]} 7. Bc4 {[%clk 01:31:51]}
{[%emt 00:00:25]} Bb4 {[%clk 01:33:26]} {[%emt 00:00:12]} 8. Bg5 {[%clk
01:21:41]} {[%emt 00:10:40]} h6 {[%clk 01:30:25]} {[%emt 00:03:30]} 9. Bxf6
{[%clk 01:21:30]} {[%emt 00:00:40]} Qxf6 {[%clk 01:30:39]} {[%emt 00:00:18]} 10.
O-O {[%clk 01:21:41]} {[%emt 00:00:17]} O-O {[%clk 01:30:10]} {[%emt 00:01:00]}
11. Ne2 {[%clk 01:18:43]} {[%emt 00:03:28]} Bd6 {[%clk 01:11:26]} {[%emt
00:19:14]} 12. Qd2 {[%clk 01:12:48]} {[%emt 00:06:24]} Bc7 {[%clk 00:52:13]}
{[%emt 00:19:44]} 13. b3 {[%clk 01:01:11]} {[%emt 00:12:07]} Qe7 {[%clk
00:46:53]} {[%emt 00:05:50]} 14. Rad1 {[%clk 00:57:36]} {[%emt 00:04:04]} Kh8
{[%clk 00:45:23]} {[%emt 00:02:00]} 15. f4 {[%clk 00:54:55]} {[%emt 00:03:11]}
exf4 {[%clk 00:35:18]} {[%emt 00:10:35]} 16. Nxf4 {[%clk 00:52:17]} {[%emt
00:03:08]} Qxe4 {[%emt 00:02:19]} 17. Rde1 {[%clk 00:52:28]} {[%emt 00:00:16]}
Qf5 {[%clk 00:32:32]} {[%emt 00:01:31]} 18. Nd5 {[%clk 00:39:16]} {[%emt
00:13:39]} Bxh2+ {[%clk 00:32:40]} {[%emt 00:00:24]} 19. Kxh2 {[%clk 00:39:38]}
{[%emt 00:00:09]} Qh5+ {[%clk 00:33:04]} {[%emt 00:00:06]} 20. Kg1 {[%clk
00:39:54]} {[%emt 00:00:13]} cxd5 {[%clk 00:33:13]} {[%emt 00:00:21]} 21. Qxd5
{[%clk 00:38:51]} {[%emt 00:01:33]} Qxd5 {[%clk 00:28:56]} {[%emt 00:04:47]} 22.
Bxd5 {[%clk 00:39:16]} {[%emt 00:00:05]} Rb8 {[%clk 00:20:12]} {[%emt
00:09:15]} 23. Rxf7 {[%clk 00:37:03]} {[%emt 00:02:43]} Rxf7 {[%clk 00:14:18]}
{[%emt 00:06:24]} 24. Re8+ {[%clk 00:37:18]} {[%emt 00:00:14]} Kh7 {[%clk
00:14:44]} {[%emt 00:00:05]} 25. Bxf7 {[%clk 00:37:36]} {[%emt 00:00:12]} Ra8
{[%clk 00:14:18]} {[%emt 00:00:56]} 26. Kf2 {[%clk 00:34:20]} {[%emt 00:03:46]}
Bb7 {[%clk 00:14:34]} {[%emt 00:00:15]} 27. Re7 {[%clk 00:34:29]} {[%emt
00:00:20]} Rf8 {[%clk 00:14:01]} {[%emt 00:01:03]} 28. Kg3 {[%clk 00:34:47]}
{[%emt 00:00:12]} Bc6 {[%clk 00:14:09]} {[%emt 00:00:23]} 29. c4 {[%clk
00:34:48]} {[%emt 00:00:28]} Rb8 {[%clk 00:12:44]} {[%emt 00:01:53]} 30. Bd5
{[%clk 00:34:22]} {[%emt 00:00:57]} Bxd5 {[%clk 00:07:03]} {[%emt 00:06:12]} 31.
cxd5 {[%clk 00:34:46]} {[%emt 00:00:06]} a5 {[%clk 00:07:13]} {[%emt 00:00:20]}
32. Rxd7 {[%clk 00:33:57]} {[%emt 00:01:18]} a4 {[%clk 00:07:38]} {[%emt
00:00:06]} 33. bxa4 {[%clk 00:34:22]} {[%emt 00:00:05]} Ra8 {[%clk 00:08:04]}
{[%emt 00:00:04]} 34. Rc7 {[%clk 00:33:56]} {[%emt 00:00:55]} Rxa4 {[%clk
00:08:23]} {[%emt 00:00:10]} 35. Rc2 {[%clk 00:34:19]} {[%emt 00:00:09]} Rd4
{[%clk 00:08:00]} {[%emt 00:00:54]} 36. Rc5 {[%clk 00:32:25]} {[%emt 00:02:23]}
Kg6 {[%clk 00:04:09]} {[%emt 00:04:21]} 37. Rc6+ {[%clk 00:32:25]} {[%emt
00:00:29]} Kf7 {[%clk 00:04:30]} {[%emt 00:00:10]} 38. d6 {[%clk 00:32:43]}
{[%emt 00:00:12]} Ra4 {[%clk 00:04:27]} {[%emt 00:00:33]} 39. d7 {[%clk
00:32:42]} {[%emt 00:00:31]} Ke7 {[%clk 00:04:22]} {[%emt 00:00:35]} 40. Rd6
{[%clk 00:32:28]} {[%emt 00:00:45]} Kd8 {[%clk 00:04:48]} {[%emt 00:00:04]} 41.
Rd2 {[%clk 00:32:51]} {[%emt 00:00:06]} g5 {[%clk 00:04:48]} {[%emt 00:00:30]}
42. Kf3 {[%clk 00:31:56]} {[%emt 00:01:26]} h5 {[%clk 00:04:55]} {[%emt
00:00:23]} 43. g3 {[%clk 00:30:45]} {[%emt 00:01:41]} h4 {[%clk 00:04:45]}
{[%emt 00:00:41]} 44. gxh4 {[%clk 00:30:07]} {[%emt 00:01:08]} gxh4 {[%clk
00:05:10]} {[%emt 00:00:04]} 45. Kg2 {[%emt 00:00:35]} Ra7 {[%clk 00:05:21]} 46.
Kh3 {[%clk 00:30:27]} {[%emt 00:00:23]} Rxd7 {[%clk 00:05:41]} {[%emt
00:00:10]} 47. Rb2 {[%clk 00:30:48]} {[%emt 00:00:09]} Rd4 {[%clk 00:05:51]}
{[%emt 00:00:20]} 48. Rf2 {[%clk 00:31:02]} {[%emt 00:00:16]} Kc7 {[%clk
00:06:14]} {[%emt 00:00:08]} 49. Rf7+ {[%clk 00:31:18]} {[%emt 00:00:13]} Kb6
{[%clk 00:06:36]} {[%emt 00:00:09]} 50. Rh7 {[%clk 00:31:39]} {[%emt 00:00:09]}
Kb5 {[%clk 00:06:54]} {[%emt 00:00:12]} 51. Rxh4 {[%clk 00:32:02]} {[%emt
00:00:06]} Rxh4+ {[%clk 00:07:15]} {[%emt 00:00:09]} 52. Kxh4 {[%clk 00:32:28]}
{[%emt 00:00:04]} Ka4 {[%clk 00:07:42]} {[%emt 00:00:03]} 53. Kh3 {[%clk
00:32:50]} {[%emt 00:00:08]} Ka3 {[%clk 00:08:07]} {[%emt 00:00:06]} 54. Kg2
{[%clk 00:33:16]} {[%emt 00:00:04]} Kxa2 {[%clk 00:08:30]} {[%emt 00:00:06]} 55.
Kf3 {[%clk 00:33:14]} {[%emt 00:00:06]} 1/2-1/2

[Event "NJSK 2023 Jeugd C"]
[Site "Almelo, Netherlands"]
[Date "2023.05.03"]
[Round "5.8"]
[White "Zhu, Chenwu"]
[Black "Fallaux, Storm"]
[Result "1-0"]
[TimeControl "90min/40moves + 30min + 30sec/move"]
[WhiteElo "2052"]
[BlackElo "1650"]

1. e4 {[%clk 01:30:58]} c5 {[%clk 01:30:56]} {[%emt 00:00:05]} 2. Nf3 {[%clk
01:31:24]} {[%emt 00:00:04]} d6 {[%clk 01:31:22]} {[%emt 00:00:04]} 3. d4
{[%clk 01:31:50]} {[%emt 00:00:03]} cxd4 {[%clk 01:31:49]} {[%emt 00:00:04]} 4.
Nxd4 {[%clk 01:32:15]} {[%emt 00:00:04]} Nf6 {[%clk 01:32:12]} {[%emt
00:00:07]} 5. Nc3 {[%clk 01:32:40]} {[%emt 00:00:04]} a6 {[%clk 01:32:39]}
{[%emt 00:00:04]} 6. f3 {[%clk 01:33:06]} {[%emt 00:00:04]} e5 {[%clk
01:33:05]} {[%emt 00:00:04]} 7. Nb3 {[%clk 01:33:31]} {[%emt 00:00:04]} Be6
{[%clk 01:33:31]} {[%emt 00:00:04]} 8. Be3 {[%clk 01:33:57]} {[%emt 00:00:05]}
Be7 {[%clk 01:33:54]} {[%emt 00:00:07]} 9. Qd2 {[%clk 01:34:22]} {[%emt
00:00:05]} h5 {[%clk 01:34:21]} {[%emt 00:00:04]} 10. O-O-O {[%clk 01:34:42]}
{[%emt 00:00:10]} Nbd7 {[%clk 01:34:00]} {[%emt 00:00:51]} 11. Kb1 {[%clk
01:35:03]} {[%emt 00:00:08]} b5 {[%clk 01:34:08]} {[%emt 00:00:23]} 12. Nd5
{[%clk 01:35:21]} {[%emt 00:00:12]} Bxd5 {[%clk 01:33:51]} {[%emt 00:00:47]} 13.
exd5 {[%clk 01:35:15]} {[%emt 00:00:36]} Nb6 {[%clk 01:33:20]} {[%emt
00:01:01]} 14. Bxb6 {[%clk 01:35:34]} {[%emt 00:00:10]} Qxb6 {[%clk 01:33:49]}
{[%emt 00:00:01]} 15. Na5 {[%clk 01:35:22]} {[%emt 00:00:42]} Rc8 {[%clk
01:30:12]} {[%emt 00:04:08]} 16. c4 {[%clk 01:33:24]} {[%emt 00:02:28]} bxc4
{[%clk 01:27:47]} {[%emt 00:02:55]} 17. Nxc4 {[%clk 01:33:32]} {[%emt
00:00:21]} Qc7 {[%clk 01:25:02]} {[%emt 00:03:16]} 18. Na5 {[%clk 01:28:57]}
{[%emt 00:05:05]} Nxd5 {[%clk 01:21:28]} {[%emt 00:04:04]} 19. Bxa6 {[%clk
01:28:11]} {[%emt 00:01:15]} Nc3+ {[%clk 01:08:48]} {[%emt 00:13:11]} 20. Qxc3
{[%clk 01:26:09]} {[%emt 00:02:31]} Qxc3 {[%clk 01:09:09]} {[%emt 00:00:09]} 21.
bxc3 {[%clk 01:25:13]} {[%emt 00:01:27]} Rb8+ {[%clk 01:09:35]} {[%emt
00:00:04]} 22. Ka1 {[%clk 01:22:15]} {[%emt 00:03:27]} O-O {[%clk 01:09:55]}
{[%emt 00:00:11]} 23. Nc6 {[%clk 01:21:37]} {[%emt 00:01:07]} 1-0